[Event "FIDE Chesscom Grand Swiss 2019"]
[Site "Douglas-Isle of Man"]
[Date "2019.10.14"]
[Round "5.18"]
[White "Vidit, Santosh Gujrathi"]
[Black "Hovhannisyan, Robert"]
[Result "1/2-1/2"]
[ECO "D47"]
[WhiteElo "2718"]
[BlackElo "2639"]
[Annotator "RC"]
[PlyCount "226"]
[EventDate "2019.10.10"]
[EventType "swiss"]
[EventCountry "GBR"]
[SourceTitle "playchess.com"]
[Source "ChessBase"]
[SourceQuality "1"]
[TimeControl "40/6000+30:20/3000+30:900+30"]

1. d4 {[%emt 0:00:00]} d5 {[%emt 0:00:00]} 2. c4 {[%emt 0:00:09]} c6 {[%emt 0:00:00]} 3. Nc3 {[%emt 0:00:10]} Nf6 {[%emt 0:00:00]} 4. e3 {[%emt 0:00:09]} e6 {[%emt 0:00:07]} 5. Nf3 {[%emt 0:00:19]} Nbd7 {[%emt 0:00:14]} 6. Bd3 {[%emt 0:00:22]} dxc4 {[%emt 0:00:10]} 7. Bxc4 {[%emt 0:00:09]} b5 {[%emt 0:00:04]} 8. Bd3 {[%emt 0:00:11]} Bd6 {[%emt 0:00:07]} 9. Qc2 {[%emt 0:00:19]} Bb7 {[%emt 0:03:26]} 10. e4 {[%emt 0:00:13]} e5 {[%emt 0:00:46]} 11. Bg5 {[%emt 0:00:18]} O-O {[%emt 0:04:22]} 12. O-O-O {[%emt 0:00:15]} h6 {[%emt 0:06:24]} 13. Bh4 {[%emt 0:00:36]} Re8 {[%emt 0:02:26]} 14. Kb1 {[%emt 0:01:25]} a5 {[%emt 0:06:58]} 15. dxe5 {[%emt 0:49:03]} Nxe5 {[%emt 0:01:32]} 16. Nxe5 {[%emt 0:02:05]} Bxe5 {[%emt 0:00:31]} 17. Bxb5 {[%emt 0:01:34]} Qe7 {[%emt 0:12:10]} 18. Ba4 {[%emt 0:03:57]} Bxc3 {[%emt 0:14:35]} 19. bxc3 {[%emt 0:00:11]} g5 {[%emt 0:04:02]} 20. Bg3 {[%emt 0:00:20]} Qxe4 {[%emt 0:01:13]} 21. f3 {[%emt 0:01:12]} Qxc2+ {[%emt 0:00:28]} 22. Kxc2 {[%emt 0:00:06]} Nd5 {[%emt 0:03:40]} 23. Bf2 {[%emt 0:13:35]} Re2+ {[%emt 0:01:23]} 24. Rd2 {[%emt 0:03:04]} Rae8 {[%emt 0:00:10]} 25. Rhd1 {[%emt 0:00:13]} Rxf2 {[%emt 0:01:20]} 26. Rxf2 {[%emt 0:00:40]} Ne3+ {[%emt 0:00:03]} 27. Kc1 {[%emt 0:04:55]} Nxd1 {[%emt 0:00:07]} 28. Kxd1 {[%emt 0:00:04]} Ba6 {[%emt 0:05:51]} 29. f4 {[%emt 0:02:42]} Re4 {[%emt 0:22:36]} 30. Bxc6 {[%emt 0:00:10]} Rc4 {[%emt 0:00:05]} 31. Bd5 {[%emt 0:02:37]} Rxc3 {[%emt 0:01:00]} 32. Bb3 {[%emt 0:04:19]} Rd3+ {[%emt 0:04:34]} 33. Kc1 {[%emt 0:03:17]} a4 {[%emt 0:08:26]} 34. Bxa4 {[%emt 0:00:18]} Rd4 {[%emt 0:00:04]} 35. Bb3 {[%emt 0:00:18]} gxf4 {[%emt 0:00:06]} 36. Kc2 {[%emt 0:02:35]} Bb7 {[%emt 0:02:45]} 37. Kc3 {[%emt 0:02:20]} Re4 {[%emt 0:00:05]} 38. Bc2 {[%emt 0:04:16]} Re5 {[%emt 0:04:17]} 39. Rxf4 {[%emt 0:00:19]} Bxg2 {[%emt 0:00:32]} 40. Bb3 {[%emt 0:00:23]} Bd5 {[%emt 0:02:24]} 41. Rg4+ {[%emt 0:16:19]} Kf8 {[%emt 0:20:51]} 42. Kd4 {[%emt 0:13:36]} Bxb3 {[%emt 0:00:27]} 43. Kxe5 {[%emt 0:00:05]} Bxa2 {[%emt 0:00:06]} 44. Kf6 {[%emt 0:00:06]} Be6 {[%emt 0:00:35]} 45. Rh4 {[%emt 0:03:43]} Kg8 {[%emt 0:00:28]} 46. Rxh6 {[%emt 0:00:04]} Bc4 {[%emt 0:00:30]} 47. Rh3 {[%emt 0:01:15]} Be6 {[%emt 0:00:58]} 48. Rh4 {[%emt 0:06:09]} Bb3 {[%emt 0:01:02]} 49. Rb4 {[%emt 0:01:02]} Be6 {[%emt 0:00:17]} 50. Rb5 {[%emt 0:00:13]} Kh7 {[%emt 0:00:27]} 51. Rh5+ {[%emt 0:00:11]} Kg8 {[%emt 0:00:05]} 52. Ke7 {[%emt 0:04:25]} Kg7 {[%emt 0:00:52]} 53. Rg5+ {[%emt 0:00:30]} Kh6 {[%emt 0:00:26]} 54. Rg8 {[%emt 0:03:32]} Kh7 {[%emt 0:00:26]} 55. Kf8 {[%emt 0:00:31]} Bb3 {[%emt 0:00:51]} 56. Rg4 {[%emt 0:01:11]} Be6 {[%emt 0:00:43]} 57. Rh4+ {[%emt 0:01:54]} Kg6 {[%emt 0:00:04]} 58. Rh8 {[%emt 0:00:10]} Bb3 {[%emt 0:01:58]} 59. Rh3 {[%emt 0:08:05]} Be6 {[%emt 0:01:07]} 60. Rg3+ {[%emt 0:01:28]} Kh7 {[%emt 0:00:17]} 61. Rg1 {[%emt 0:17:13]} Kh8 {[%emt 0:15:45]} 62. Rg7 {[%emt 0:00:35]} Bb3 {[%emt 0:00:53]} 63. Rg5 {[%emt 0:00:00]} Kh7 {[%emt 0:00:00]} 64. Ke7 {[%emt 0:00:00]} Be6 {[%emt 0:00:00]} 65. Kf6 {[%emt 0:00:00]} Kh8 {[%emt 0:00:00]} 66. Ra5 {[%emt 0:00:00]} Kh7 {[%emt 0:00:00]} 67. Ra8 {[%emt 0:00:00]} Bd5 {[%emt 0:00:00]} 68. Rb8 {[%emt 0:00:00]} Be6 {[%emt 0:00:00]} 69. Rb4 {[%emt 0:00:00]} Kg8 {[%emt 0:00:00]} 70. Rb1 {[%emt 0:00:00]} Kh7 {[%emt 0:00:00]} 71. Rc1 {[%emt 0:00:00]} Kg8 {[%emt 0:00:00]} 72. Rg1+ {[%emt 0:00:00]} Kh7 {[%emt 0:00:00]} 73. Rg2 {[%emt 0:00:00]} Kh8 {[%emt 0:00:00]} 74. Rg5 {[%emt 0:00:00]} Kh7 {[%emt 0:00:00]} 75. Ke7 {[%emt 0:00:00]} Kh6 {[%emt 0:00:00]} 76. Rg1 {[%emt 0:00:00]} Kh7 {[%emt 0:00:00]} 77. Kf8 {[%emt 0:00:00]} Bb3 {[%emt 0:00:00]} 78. Rg4 {[%emt 0:00:15]} Be6 {[%emt 0:00:00]} 79. Rb4 {[%emt 0:00:59]} Ba2 {[%emt 0:00:00]} 80. Rb5 {[%emt 0:01:22]} Be6 {[%emt 0:00:00]} 81. h4 {[%emt 0:02:26]} Bc4 {[%emt 0:00:00]} 82. Rh5+ {[%emt 0:02:17]} Kg6 {[%emt 0:00:00]} 83. Rc5 {[%emt 0:00:12]} Be6 {[%emt 0:00:00]} 84. Kg8 {[%emt 0:00:12]} f5+ {[%emt 0:02:57]} 85. Kf8 {[%emt 0:00:05]} Kh5 {[%emt 0:00:41]} 86. Ke7 {[%emt 0:00:08]} Bg8 {[%emt 0:05:12]} 87. Kf6 {[%emt 0:00:50]} Kxh4 {[%emt 0:00:23]} 88. Kxf5 {[%emt 0:00:45]} Kg3 {[%emt 0:01:23]} 89. Rc7 {[%emt 0:01:03]} Bd5 {[%emt 0:00:30]} 90. Rc3+ {[%emt 0:00:21]} Kf2 {[%emt 0:00:45]} 91. Ke5 {[%emt 0:00:24]} Ba8 {[%emt 0:00:45]} 92. Kd4 {[%emt 0:00:22]} Bg2 {[%emt 0:00:34]} 93. Rc2+ {[%emt 0:00:23]} Kf3 {[%emt 0:00:26]} 94. Ke5 {[%emt 0:00:07]} Kg3 {[%emt 0:01:26]} 95. Rc3+ {[%emt 0:00:06]} Kg4 {[%emt 0:00:15]} 96. Rc8 {[%emt 0:00:04]} Kf3 {[%emt 0:00:22]} 97. Rg8 {[%emt 0:00:03]} Bh3 {[%emt 0:00:49]} 98. Rf8+ {[%emt 0:00:14]} Ke3 {[%emt 0:00:35]} 99. Ra8 {[%emt 0:00:03]} Bg2 {[%emt 0:00:54]} 100. Ra3+ {[%emt 0:00:06]} Ke2 {[%emt 0:00:16]} 101. Rb3 {[%emt 0:01:28]} Bc6 {[%emt 0:00:34]} 102. Kd4 {[%emt 0:00:18]} Bg2 {[%emt 0:00:48]} 103. Rb8 {[%emt 0:00:15]} Kf3 {[%emt 0:00:29]} 104. Rg8 {[%emt 0:00:10]} Bf1 {[%emt 0:00:47]} 105. Rf8+ {[%emt 0:00:26]} Ke2 {[%emt 0:00:16]} 106. Re8+ {[%emt 0:00:08]} Kf3 {[%emt 0:00:25]} 107. Re3+ {[%emt 0:00:09]} Kf4 {[%emt 0:00:24]} 108. Re1 {[%emt 0:00:05]} Bg2 {[%emt 0:00:18]} 109. Kd3 {[%emt 0:00:06]} Bb7 {[%emt 0:00:56]} 110. Re7 {[%emt 0:00:15]} Bg2 {[%emt 0:00:25]} 111. Kd4 {[%emt 0:00:03]} Kf5 {[%emt 0:00:26]} 112. Rf7+ {[%emt 0:00:12]} Ke6 {[%emt 0:00:33]} 113. Rg7 {[%emt 0:00:02]} Bf3 {[%emt 0:00:25]} 1/2-1/2

[Event "FIDE Chesscom Grand Swiss 2019"]
[Site "Douglas-Isle of Man"]
[Date "2019.10.14"]
[Round "5.18"]
[White "Jumabayev, Rinat"]
[Black "Munguntuul, Batkhuyag"]
[Result "1-0"]
[ECO "B54"]
[WhiteElo "2630"]
[BlackElo "2421"]
[Annotator "RC"]
[PlyCount "79"]
[EventDate "2019.10.10"]
[EventType "swiss"]
[EventCountry "GBR"]
[SourceTitle "playchess.com"]
[Source "ChessBase"]
[SourceQuality "1"]
[TimeControl "40/6000+30:20/3000+30:900+30"]

1. e4 {[%emt 0:00:00]} c5 {[%emt 0:00:00]} 2. Nf3 {[%emt 0:00:00]} e6 {[%emt 0:00:00]} 3. d4 {[%emt 0:00:00]} cxd4 {[%emt 0:00:00]} 4. Nxd4 {[%emt 0:00:00]} Nc6 {[%emt 0:00:00]} 5. Nc3 {[%emt 0:00:00]} d6 {[%emt 0:00:03]} 6. g4 {[%emt 0:00:00]} Nge7 {[%emt 0:01:00]} 7. Be3 {[%emt 0:00:33]} Nxd4 {[%emt 0:02:56]} 8. Qxd4 {[%emt 0:00:51]} Nc6 {[%emt 0:02:57]} 9. Qd2 {[%emt 0:00:31]} Be7 {[%emt 0:00:47]} 10. O-O-O {[%emt 0:01:07]} a6 {[%emt 0:00:39]} 11. f4 {[%emt 0:03:51]} b5 {[%emt 0:07:34]} 12. g5 {[%emt 0:02:20]} Bb7 {[%emt 0:05:24]} 13. Rg1 {[%emt 0:12:15]} Rc8 {[%emt 0:14:46]} 14. Kb1 {[%emt 0:07:06]} Qa5 {[%emt 0:06:26]} 15. Bg2 {[%emt 0:05:48]} b4 {[%emt 0:02:45]} 16. Ne2 {[%emt 0:03:21]} O-O {[%emt 0:09:21]} 17. h4 {[%emt 0:11:56]} f5 {[%emt 0:18:49]} 18. exf5 {[%emt 0:09:20]} Rxf5 {[%emt 0:09:18]} 19. Nd4 {[%emt 0:10:13]} Nxd4 {[%emt 0:03:39]} 20. Bxb7 {[%emt 0:00:33]} Rb8 {[%emt 0:00:53]} 21. Qxd4 {[%emt 0:03:11]} Rxb7 {[%emt 0:00:02]} 22. Qe4 {[%emt 0:00:09]} Rc7 {[%emt 0:02:38]} 23. Qxe6+ {[%emt 0:00:18]} Rf7 {[%emt 0:00:02]} 24. h5 {[%emt 0:09:30]} Qf5 {[%emt 0:00:06]} 25. Qb3 {[%emt 0:00:24]} Kh8 {[%emt 0:01:11]} 26. Rd5 {[%emt 0:02:58]} Qe6 {[%emt 0:02:40]} 27. Qd3 {[%emt 0:03:58]} Bf8 {[%emt 0:04:16]} 28. f5 {[%emt 0:01:23]} Qe8 {[%emt 0:00:03]} 29. f6 {[%emt 0:13:19]} Rc6 {[%emt 0:02:57]} 30. h6 {[%emt 0:01:58]} g6 {[%emt 0:00:49]} 31. Bd2 {[%emt 0:00:37]} Rb7 {[%emt 0:01:25]} 32. Re1 {[%emt 0:01:29]} Qf7 {[%emt 0:00:08]} 33. b3 {[%emt 0:01:53]} Kg8 {[%emt 0:02:46]} 34. Ra5 {[%emt 0:01:27]} Rbb6 {[%emt 0:01:25]} 35. Qd4 {[%emt 0:01:59]} Qc7 {[%emt 0:02:58]} 36. Rf1 {[%emt 0:00:41]} Qf7 {[%emt 0:01:46]} 37. Bxb4 {[%emt 0:00:27]} Rb8 {[%emt 0:00:16]} 38. Bd2 {[%emt 0:00:34]} Rbc8 {[%emt 0:00:37]} 39. Rc1 {[%emt 0:00:15]} Qe6 {[%emt 0:01:02]} 40. Qd3 {[%emt 0:00:17]} 1-0

[Event "FIDE Chesscom Grand Swiss 2019"]
[Site "Douglas-Isle of Man"]
[Date "2019.10.14"]
[Round "5.22"]
[White "Erenberg, Ariel"]
[Black "Jones, Gawain C B"]
[Result "1/2-1/2"]
[ECO "D79"]
[WhiteElo "2463"]
[BlackElo "2688"]
[Annotator "RC"]
[PlyCount "84"]
[EventDate "2019.10.10"]
[EventType "swiss"]
[EventCountry "GBR"]
[SourceTitle "playchess.com"]
[Source "ChessBase"]
[SourceQuality "1"]
[TimeControl "40/6000+30:20/3000+30:900+30"]

1. d4 {[%emt 0:00:00]} Nf6 {[%emt 0:01:13]} 2. c4 {[%emt 0:00:00]} g6 {[%emt 0:00:21]} 3. g3 {[%emt 0:00:00]} c6 {[%emt 0:00:06]} 4. Bg2 {[%emt 0:01:57]} d5 {[%emt 0:00:31]} 5. cxd5 {[%emt 0:03:20]} cxd5 {[%emt 0:00:22]} 6. Nc3 {[%emt 0:04:12]} Bg7 {[%emt 0:00:06]} 7. Nf3 {[%emt 0:01:50]} Ne4 {[%emt 0:01:18]} 8. Ne5 {[%emt 0:03:22]} Nxc3 {[%emt 0:06:26]} 9. bxc3 {[%emt 0:00:03]} O-O {[%emt 0:00:14]} 10. O-O {[%emt 0:01:15]} Nc6 {[%emt 0:00:30]} 11. Nxc6 {[%emt 0:00:06]} bxc6 {[%emt 0:00:07]} 12. Qa4 {[%emt 0:00:21]} Qb6 {[%emt 0:05:50]} 13. Ba3 {[%emt 0:00:37]} Qa6 {[%emt 0:00:14]} 14. Qxa6 {[%emt 0:00:18]} Bxa6 {[%emt 0:00:02]} 15. Rfb1 {[%emt 0:07:58]} Rfe8 {[%emt 0:05:55]} 16. Bf1 {[%emt 0:06:45]} Bf8 {[%emt 0:10:07]} 17. e3 {[%emt 0:05:35]} Bxf1 {[%emt 0:00:05]} 18. Kxf1 {[%emt 0:00:02]} Reb8 {[%emt 0:00:08]} 19. Ke2 {[%emt 0:17:07]} e6 {[%emt 0:00:16]} 20. Bxf8 {[%emt 0:00:11]} Kxf8 {[%emt 0:00:07]} 21. Kd3 {[%emt 0:07:30]} Ke7 {[%emt 0:02:33]} 22. c4 {[%emt 0:02:58]} Kd6 {[%emt 0:04:41]} 23. c5+ {[%emt 0:04:25]} Kc7 {[%emt 0:00:07]} 24. h4 {[%emt 0:01:02]} f6 {[%emt 0:03:09]} 25. f4 {[%emt 0:03:49]} h5 {[%emt 0:12:44]} 26. Kc2 {[%emt 0:10:07]} Rxb1 {[%emt 0:03:36]} 27. Rxb1 {[%emt 0:00:15]} Rg8 {[%emt 0:00:05]} 28. Kd3 {[%emt 0:04:25]} Kc8 {[%emt 0:01:24]} 29. Rb2 {[%emt 0:01:54]} Rg7 {[%emt 0:02:08]} 30. Rb1 {[%emt 0:00:54]} Rf7 {[%emt 0:03:12]} 31. Rg1 {[%emt 0:08:31]} Rh7 {[%emt 0:02:04]} 32. Rb1 {[%emt 0:01:05]} Rg7 {[%emt 0:00:26]} 33. Rg1 {[%emt 0:01:09]} Rh7 {[%emt 0:03:20]} 34. Rb1 {[%emt 0:00:24]} Rb7 {[%emt 0:00:14]} 35. Rxb7 {[%emt 0:02:05]} Kxb7 {[%emt 0:00:10]} 36. Kc3 {[%emt 0:00:04]} a5 {[%emt 0:00:24]} 37. Kb3 {[%emt 0:00:31]} Ka7 {[%emt 0:00:06]} 38. Ka4 {[%emt 0:04:10]} Ka6 {[%emt 0:01:31]} 39. a3 {[%emt 0:00:16]} f5 {[%emt 0:00:26]} 40. Kb3 {[%emt 0:00:02]} Kb5 {[%emt 0:00:18]} 41. a4+ {[%emt 0:50:00]} Ka6 {[%emt 0:50:12]} 42. Kc3 {[%emt 0:00:25]} Kb7 {[%emt 0:00:15]} 1/2-1/2

[Event "FIDE Chesscom Grand Swiss 2019"]
[Site "Douglas-Isle of Man"]
[Date "2019.10.14"]
[Round "5.24"]
[White "Piorun, Kacper"]
[Black "Harika, Dronavalli"]
[Result "1/2-1/2"]
[ECO "B21"]
[WhiteElo "2643"]
[BlackElo "2495"]
[Annotator "RC"]
[PlyCount "189"]
[EventDate "2019.10.10"]
[EventType "swiss"]
[EventCountry "GBR"]
[SourceTitle "playchess.com"]
[Source "ChessBase"]
[SourceQuality "1"]
[TimeControl "40/6000+30:20/3000+30:900+30"]

1. e4 {[%emt 0:00:00]} c5 {[%emt 0:02:31]} 2. Be2 {[%emt 0:00:00]} Nc6 {[%emt 0:01:36]} 3. f4 {[%emt 0:00:00]} e6 {[%emt 0:01:44]} 4. Nf3 {[%emt 0:00:12]} d5 {[%emt 0:00:12]} 5. d3 {[%emt 0:00:08]} Nf6 {[%emt 0:07:47]} 6. e5 {[%emt 0:12:12]} Ng8 {[%emt 0:02:57]} 7. c3 {[%emt 0:01:11]} Nh6 {[%emt 0:03:52]} 8. Na3 {[%emt 0:01:38]} Bd7 {[%emt 0:11:19]} 9. Nc2 {[%emt 0:09:24]} Nf5 {[%emt 0:14:15]} 10. O-O {[%emt 0:08:02]} h5 {[%emt 0:04:58]} 11. Qe1 {[%emt 0:09:55]} Qb6 {[%emt 0:05:56]} 12. Rb1 {[%emt 0:01:51]} a6 {[%emt 0:07:32]} 13. Qf2 {[%emt 0:09:12]} Qa7 {[%emt 0:01:02]} 14. Rd1 {[%emt 0:12:20]} g6 {[%emt 0:08:34]} 15. a3 {[%emt 0:02:13]} b5 {[%emt 0:03:02]} 16. b3 {[%emt 0:02:36]} Be7 {[%emt 0:01:19]} 17. Ne3 {[%emt 0:00:58]} Nh6 {[%emt 0:04:42]} 18. h3 {[%emt 0:04:18]} Bd8 {[%emt 0:03:20]} 19. d4 {[%emt 0:00:58]} Bb6 {[%emt 0:03:56]} 20. Bb2 {[%emt 0:02:18]} Nf5 {[%emt 0:02:06]} 21. Nxf5 {[%emt 0:02:38]} exf5 {[%emt 0:00:26]} 22. Kh1 {[%emt 0:01:07]} Be6 {[%emt 0:02:42]} 23. Ng5 {[%emt 0:04:10]} cxd4 {[%emt 0:06:47]} 24. cxd4 {[%emt 0:00:20]} Bd8 {[%emt 0:00:34]} 25. Nf3 {[%emt 0:08:00]} Be7 {[%emt 0:01:44]} 26. b4 {[%emt 0:03:31]} Nb8 {[%emt 0:02:43]} 27. Nd2 {[%emt 0:04:41]} Nd7 {[%emt 0:00:06]} 28. Nb3 {[%emt 0:00:04]} Nb6 {[%emt 0:00:04]} 29. Nc5 {[%emt 0:00:03]} Kf8 {[%emt 0:00:32]} 30. Bc3 {[%emt 0:02:03]} Kg7 {[%emt 0:00:13]} 31. Be1 {[%emt 0:02:16]} Rad8 {[%emt 0:01:28]} 32. Rdc1 {[%emt 0:00:54]} Rc8 {[%emt 0:01:23]} 33. Qe3 {[%emt 0:00:49]} Qa8 {[%emt 0:00:29]} 34. Qb3 {[%emt 0:01:53]} Qa7 {[%emt 0:00:30]} 35. Ra1 {[%emt 0:00:23]} Qa8 {[%emt 0:01:15]} 36. Rd1 {[%emt 0:00:17]} Rc6 {[%emt 0:01:26]} 37. a4 {[%emt 0:01:42]} Nxa4 {[%emt 0:00:08]} 38. Nxa4 {[%emt 0:00:05]} bxa4 {[%emt 0:00:03]} 39. Qxa4 {[%emt 0:00:08]} Qc8 {[%emt 0:02:53]} 40. Bxa6 {[%emt 0:00:19]} Qc7 {[%emt 0:00:06]} 41. Bd3 {[%emt 0:53:03]} Qb6 {[%emt 0:04:44]} 42. b5 {[%emt 0:00:00]} Rcc8 {[%emt 0:00:21]} 43. Qa7 {[%emt 0:00:00]} Bd8 {[%emt 0:01:48]} 44. Bf1 {[%emt 0:00:00]} Qxa7 {[%emt 0:00:17]} 45. Rxa7 {[%emt 0:00:00]} Bb6 {[%emt 0:00:16]} 46. Raa1 {[%emt 0:00:00]} Rc2 {[%emt 0:01:28]} 47. Ba5 {[%emt 0:00:00]} Bxa5 {[%emt 0:03:15]} 48. Rxa5 {[%emt 0:00:00]} Rb8 {[%emt 0:00:07]} 49. Rb1 {[%emt 0:00:00]} Rf2 {[%emt 0:00:22]} 50. Kg1 {[%emt 0:00:00]} Rxf4 {[%emt 0:00:10]} 51. b6 {[%emt 0:00:00]} Rxd4 {[%emt 0:01:24]} 52. b7 {[%emt 0:00:00]} Bd7 {[%emt 0:00:03]} 53. Ra8 {[%emt 0:00:00]} Rxb7 {[%emt 0:00:04]} 54. Rxb7 {[%emt 0:00:00]} Bc6 {[%emt 0:00:01]} 55. Ba6 {[%emt 0:02:09]} Re4 {[%emt 0:10:53]} 56. Rd8 {[%emt 0:01:09]} Bxb7 {[%emt 0:00:07]} 57. Bxb7 {[%emt 0:00:04]} Rxe5 {[%emt 0:00:05]} 58. Bxd5 {[%emt 0:01:23]} Re7 {[%emt 0:03:00]} 59. Kf2 {[%emt 0:00:17]} Kf6 {[%emt 0:02:38]} 60. Kf3 {[%emt 0:00:56]} Ra7 {[%emt 0:03:18]} 61. Ke3 {[%emt 0:15:38]} h4 {[%emt 0:20:51]} 62. Rh8 {[%emt 0:01:22]} Ke5 {[%emt 0:04:03]} 63. Bc4 {[%emt 0:01:00]} g5 {[%emt 0:00:07]} 64. Rh6 {[%emt 0:00:46]} Ra3+ {[%emt 0:00:49]} 65. Kf2 {[%emt 0:00:40]} f6 {[%emt 0:00:22]} 66. Rh8 {[%emt 0:02:13]} Rc3 {[%emt 0:00:21]} 67. Be2 {[%emt 0:00:38]} Rc2 {[%emt 0:03:08]} 68. Re8+ {[%emt 0:00:21]} Kd6 {[%emt 0:00:05]} 69. Ke3 {[%emt 0:01:28]} Rb2 {[%emt 0:00:39]} 70. Bd3 {[%emt 0:01:32]} Kd7 {[%emt 0:09:29]} 71. Ra8 {[%emt 0:00:10]} Rxg2 {[%emt 0:00:56]} 72. Bxf5+ {[%emt 0:00:22]} Ke7 {[%emt 0:00:25]} 73. Ra7+ {[%emt 0:00:17]} Kd6 {[%emt 0:00:08]} 74. Bg4 {[%emt 0:00:52]} Rb2 {[%emt 0:01:56]} 75. Rf7 {[%emt 0:00:00]} Ke5 {[%emt 0:00:00]} 76. Re7+ {[%emt 0:00:00]} Kd5 {[%emt 0:00:00]} 77. Re8 {[%emt 0:00:00]} Rb3+ {[%emt 0:00:00]} 78. Ke2 {[%emt 0:00:00]} Rb2+ {[%emt 0:00:00]} 79. Kd3 {[%emt 0:00:00]} Rb3+ {[%emt 0:00:00]} 80. Kc2 {[%emt 0:00:00]} Rg3 {[%emt 0:00:00]} 81. Kd2 {[%emt 0:00:00]} Ra3 {[%emt 0:00:00]} 82. Bf5 {[%emt 0:00:00]} Kd4 {[%emt 0:00:00]} 83. Ke2 {[%emt 0:00:00]} Ra5 {[%emt 0:00:00]} 84. Re4+ {[%emt 0:00:16]} Kc3 {[%emt 0:00:00]} 85. Be6 {[%emt 0:00:06]} Rc5 {[%emt 0:00:49]} 86. Kf3 {[%emt 0:00:27]} f5 {[%emt 0:00:29]} 87. Ra4 {[%emt 0:00:04]} Re5 {[%emt 0:01:27]} 88. Ra6 {[%emt 0:00:09]} Kd4 {[%emt 0:00:57]} 89. Ra4+ {[%emt 0:00:27]} Kc3 {[%emt 0:00:25]} 90. Bf7 {[%emt 0:00:24]} Kd3 {[%emt 0:01:47]} 91. Ra3+ {[%emt 0:00:32]} Kd4 {[%emt 0:00:37]} 92. Bg6 {[%emt 0:01:19]} Rc5 {[%emt 0:00:13]} 93. Bh5 {[%emt 0:01:30]} Rc3+ {[%emt 0:02:19]} 94. Rxc3 {[%emt 0:00:06]} Kxc3 {[%emt 0:00:02]} 95. Bg4 {[%emt 0:00:32]} 1/2-1/2

[Event "FIDE Chesscom Grand Swiss 2019"]
[Site "Douglas-Isle of Man"]
[Date "2019.10.14"]
[Round "5.25"]
[White "Moiseenko, Alexander"]
[Black "Lei, Tingjie"]
[Result "1/2-1/2"]
[ECO "D35"]
[WhiteElo "2635"]
[BlackElo "2469"]
[Annotator "RC"]
[PlyCount "70"]
[EventDate "2019.10.10"]
[EventType "swiss"]
[EventCountry "GBR"]
[SourceTitle "playchess.com"]
[Source "ChessBase"]
[SourceQuality "1"]
[TimeControl "40/6000+30:20/3000+30:900+30"]

1. d4 {[%emt 0:00:00]} Nf6 {[%emt 0:00:00]} 2. c4 {[%emt 0:00:00]} e6 {[%emt 0:00:08]} 3. Nc3 {[%emt 0:00:00]} d5 {[%emt 0:00:08]} 4. cxd5 {[%emt 0:00:53]} Nxd5 {[%emt 0:00:08]} 5. e4 {[%emt 0:01:25]} Nxc3 {[%emt 0:00:11]} 6. bxc3 {[%emt 0:00:01]} c5 {[%emt 0:00:06]} 7. Rb1 {[%emt 0:02:29]} Be7 {[%emt 0:00:20]} 8. Nf3 {[%emt 0:00:13]} O-O {[%emt 0:00:11]} 9. Bc4 {[%emt 0:00:18]} Qc7 {[%emt 0:00:49]} 10. d5 {[%emt 0:12:38]} exd5 {[%emt 0:02:02]} 11. Bxd5 {[%emt 0:00:13]} Nd7 {[%emt 0:02:28]} 12. O-O {[%emt 0:01:16]} Nf6 {[%emt 0:00:38]} 13. c4 {[%emt 0:01:00]} Nxd5 {[%emt 0:01:07]} 14. cxd5 {[%emt 0:00:17]} Bd6 {[%emt 0:03:31]} 15. Bb2 {[%emt 0:09:23]} f6 {[%emt 0:00:34]} 16. Re1 {[%emt 0:03:39]} Re8 {[%emt 0:03:57]} 17. h3 {[%emt 0:09:00]} b5 {[%emt 0:04:21]} 18. Qc2 {[%emt 0:05:44]} Qf7 {[%emt 0:14:42]} 19. Ba3 {[%emt 0:13:08]} Bd7 {[%emt 0:22:30]} 20. Bb2 {[%emt 0:11:25]} Qh5 {[%emt 0:04:16]} 21. Qe2 {[%emt 0:03:02]} Re7 {[%emt 0:10:28]} 22. a4 {[%emt 0:05:43]} a6 {[%emt 0:01:15]} 23. axb5 {[%emt 0:01:34]} axb5 {[%emt 0:01:13]} 24. Ra1 {[%emt 0:01:52]} Rae8 {[%emt 0:02:45]} 25. e5 {[%emt 0:03:50]} Bxe5 {[%emt 0:20:27]} 26. Nxe5 {[%emt 0:11:14]} Qxe2 {[%emt 0:00:11]} 27. Rxe2 {[%emt 0:00:02]} fxe5 {[%emt 0:00:11]} 28. Ra7 {[%emt 0:00:23]} Bf5 {[%emt 0:09:21]} 29. Rxe7 {[%emt 0:00:46]} Rxe7 {[%emt 0:00:03]} 30. Rxe5 {[%emt 0:02:17]} Rxe5 {[%emt 0:01:14]} 31. Bxe5 {[%emt 0:00:02]} Kf7 {[%emt 0:02:19]} 32. Bd6 {[%emt 0:02:29]} c4 {[%emt 0:00:03]} 33. Bb4 {[%emt 0:00:14]} Be4 {[%emt 0:00:08]} 34. d6 {[%emt 0:00:23]} Ke6 {[%emt 0:01:12]} 35. f3 {[%emt 0:00:07]} Bd3 {[%emt 0:00:43]} 1/2-1/2

[Event "FIDE Chesscom Grand Swiss 2019"]
[Site "Douglas-Isle of Man"]
[Date "2019.10.14"]
[Round "5.26"]
[White "Soumya, Swaminathan"]
[Black "Alekseev, Evgeny"]
[Result "0-1"]
[ECO "C45"]
[WhiteElo "2365"]
[BlackElo "2629"]
[Annotator "RC"]
[PlyCount "66"]
[EventDate "2019.10.10"]
[EventType "swiss"]
[EventCountry "GBR"]
[SourceTitle "playchess.com"]
[Source "ChessBase"]
[SourceQuality "1"]
[TimeControl "40/6000+30:20/3000+30:900+30"]

1. e4 {[%emt 0:00:00]} e5 {[%emt 0:04:22]} 2. Nf3 {[%emt 0:00:00]} Nc6 {[%emt 0:00:12]} 3. d4 {[%emt 0:00:10]} exd4 {[%emt 0:00:25]} 4. Nxd4 {[%emt 0:00:02]} Nf6 {[%emt 0:02:52]} 5. Nxc6 {[%emt 0:00:06]} bxc6 {[%emt 0:00:19]} 6. e5 {[%emt 0:00:06]} Qe7 {[%emt 0:00:13]} 7. Qe2 {[%emt 0:00:04]} Nd5 {[%emt 0:00:03]} 8. h4 {[%emt 0:00:07]} a5 {[%emt 0:02:40]} 9. c4 {[%emt 0:13:56]} Qb4+ {[%emt 0:08:21]} 10. Nd2 {[%emt 0:09:11]} Nf4 {[%emt 0:01:24]} 11. Qe4 {[%emt 0:11:30]} Ne6 {[%emt 0:01:40]} 12. Rh3 {[%emt 0:03:05]} a4 {[%emt 0:02:23]} 13. f4 {[%emt 0:14:08]} g6 {[%emt 0:13:51]} 14. h5 {[%emt 0:04:00]} Bb7 {[%emt 0:01:52]} 15. hxg6 {[%emt 0:14:00]} fxg6 {[%emt 0:00:24]} 16. Rc3 {[%emt 0:01:15]} Bc5 {[%emt 0:10:44]} 17. a3 {[%emt 0:18:07]} Qb6 {[%emt 0:10:22]} 18. Nf3 {[%emt 0:08:05]} Bf2+ {[%emt 0:07:00]} 19. Kd1 {[%emt 0:00:01]} c5 {[%emt 0:01:10]} 20. Qe2 {[%emt 0:03:33]} Bd4 {[%emt 0:03:46]} 21. Rd3 {[%emt 0:01:57]} O-O {[%emt 0:06:58]} 22. g3 {[%emt 0:00:16]} Rae8 {[%emt 0:01:21]} 23. Bg2 {[%emt 0:04:43]} d6 {[%emt 0:01:56]} 24. Rb1 {[%emt 0:01:24]} Qa6 {[%emt 0:05:25]} 25. b3 {[%emt 0:00:24]} Qa8 {[%emt 0:10:46]} 26. bxa4 {[%emt 0:01:27]} Bc6 {[%emt 0:01:48]} 27. Be3 {[%emt 0:01:15]} dxe5 {[%emt 0:01:03]} 28. Bxd4 {[%emt 0:00:26]} e4 {[%emt 0:04:18]} 29. Be5 {[%emt 0:00:28]} exd3 {[%emt 0:00:19]} 30. Qe3 {[%emt 0:00:15]} Qxa4+ {[%emt 0:02:14]} 31. Ke1 {[%emt 0:00:02]} Qc2 {[%emt 0:00:33]} 32. Rb2 {[%emt 0:00:02]} Qxb2 {[%emt 0:00:51]} 33. Bxb2 {[%emt 0:00:11]} Nxf4 {[%emt 0:00:07]} 0-1